fUST/lending_fUST_20250222
["ID","MTS","AMOUNT","RATE_DAILY","PERIOD"]
[354043489,1740201036903,-500.0,0.00013698,2]
[354043490,1740201036915,-152.788416,0.00013698,2]
[354043491,1740201036926,-152.788416,0.00013698,2]
[354043492,1740201036937,-152.788416,0.00013698,2]
[354043493,1740201036947,-1100.22,0.00013698,2]
[354043494,1740201036958,-500.0,0.00013698,2]
[354043495,1740201036969,-500.0,0.00013698,2]
[354043496,1740201036980,-502.67256163,0.00013698,2]
[354043497,1740201036991,-500.0,0.00013698,2]
[354043498,1740201037002,-500.0,0.00013698,2]
[354043499,1740201037012,-508.46764408,0.00013698,2]
[354043500,1740201037023,-503.7623068,0.00013698,2]
[354043501,1740201037033,-2884.74,0.00013698,2]
[354043502,1740201037044,-500.0,0.00013698,2]
[354043503,1740201037055,-500.0,0.00013698,2]
[354043504,1740201037067,-518.36766355,0.00013698,2]
[354043505,1740201037079,-500.0,0.00013698,2]
[354043506,1740201037089,-507.95260815,0.00013698,2]
[354043507,1740201037100,-503.62371071,0.00013698,2]
[354043508,1740201037110,-506.72770741,0.00013698,2]
[354043509,1740201037121,-500.0,0.00013698,2]
[354043510,1740201037132,-503.50228014,0.00013698,2]
[354043511,1740201037143,-606.55671246,0.00013698,2]
[354043512,1740201037154,-500.0,0.00013698,2]
[354043513,1740201037165,-503.8304537,0.00013698,2]
[354043514,1740201037176,-500.0,0.00013698,2]
[354043515,1740201037187,-663.77,0.00013698,2]
[354043516,1740201037198,-776.56,0.00013698,2]
[354043517,1740201037209,-151.0,0.00013698,2]
[354043518,1740201037220,-500.0,0.00013698,2]
[354043519,1740201037231,-151.0,0.00013698,2]
[354043520,1740201037244,-151.0,0.00013698,2]
[354043521,1740201037256,-500.0,0.00013698,2]
[354043522,1740201037268,-500.0,0.00013698,2]
[354043523,1740201037279,-500.0,0.00013698,2]
[354043524,1740201037291,-500.0,0.00013698,2]
[354043525,1740201037304,-500.0,0.00013698,2]
[354043526,1740201037316,-500.0,0.00013698,2]
[354043527,1740201037328,-500.0,0.00013698,2]
[354043528,1740201037339,-500.0,0.00013698,2]
[354043529,1740201037350,-500.0,0.00013698,2]
[354043530,1740201037361,-639.5,0.00013698,2]
[354043531,1740201037372,-503.72007451,0.00013698,2]
[354043532,1740201037386,-530.04689769,0.00013698,2]
[354043533,1740201037396,-500.0,0.00013698,2]
[354043534,1740201037407,-503.34011564,0.00013698,2]
[354043535,1740201037529,-503.40952655,0.00013698,2]
[354043536,1740201037538,-500.0,0.00013698,2]
[354043537,1740201037547,-540.44933839,0.00013698,2]
[354043538,1740201037556,-500.0,0.00013698,2]
[354043539,1740201037565,-507.48140636,0.00013698,2]
[354043540,1740201037575,-151.0,0.00013698,2]
[354043541,1740201037584,-186.508987,0.00013698,2]
[354043542,1740201037593,-192.15038798,0.00013698,2]
[354043543,1740201037603,-503.38457203,0.00013698,2]
[354043544,1740201037612,-570.56942112,0.00013698,2]
[354043545,1740201037621,-500.0,0.00013698,2]
[354043546,1740201037630,-500.0,0.00013698,2]
[354043547,1740201037639,-500.0,0.00013698,2]
[354043548,1740201037648,-352.6059685,0.00013698,2]
[354043549,1740201037657,-500.0,0.00013698,2]
[354043550,1740201037667,-622.79860576,0.00013698,2]
[354043551,1740201037677,-501.5972644,0.00013698,2]
[354043552,1740201037687,-500.0,0.00013698,2]
[354043553,1740201037696,-503.21310985,0.00013698,2]
[354043554,1740201037705,-500.0,0.00013698,2]
[354043555,1740201037714,-502.91285614,0.00013698,2]
[354043556,1740201037723,-500.0,0.00013698,2]
[354043557,1740201037732,-592.05,0.00013698,2]
[354043558,1740201037741,-500.0,0.00013698,2]
[354043559,1740201037750,-500.0,0.00013698,2]
[354043560,1740201037760,-151.137377,0.00013698,2]
[354043561,1740201037769,-500.0,0.00013698,2]
[354043562,1740201037779,-508.65871007,0.00013698,2]
[354043563,1740201037788,-501.31189055,0.00013698,2]
[354043564,1740201037797,-500.0,0.00013698,2]
[354043565,1740201037807,-500.0,0.00013698,2]
[354043566,1740201037815,-500.0,0.00013698,2]
[354043567,1740201037825,-500.0,0.00013698,2]
[354043568,1740201037834,-500.0,0.00013698,2]
[354043569,1740201037843,-503.34433438,0.00013698,2]
[354043570,1740201037852,-500.0,0.00013698,2]
[354043571,1740201037862,-505.84932179,0.00013698,2]
[354043573,1740201037871,-500.0,0.00013698,2]
[354043575,1740201037881,-500.0,0.00013698,2]
[354043577,1740201037891,-500.0,0.00013698,2]
[354043579,1740201037900,-1102.05,0.00013698,2]
[354043581,1740201037909,-501.27614981,0.00013698,2]
[354043582,1740201037918,-512.15,0.00013698,2]
[354043584,1740201037927,-170.979503,0.00013699,2]
[354043585,1740201037936,-500.0,0.00013779,2]
[354043587,1740201037945,-8025.33990527,0.0001378,5]
[354043589,1740201037954,-500.0,0.0001378,2]
[354043591,1740201037963,-500.0,0.0001378,2]
[354043593,1740201037973,-642.36506712,0.0001378,2]
[354043595,1740201037982,-225.28,0.0001378,2]
[354043597,1740201037992,-397.87883305,0.0001378,2]
[354043599,1740201038002,-151.0,0.0001378,2]
[354043600,1740201038011,-151.0,0.0001378,2]
[354043602,1740201038020,-381.33130632,0.0001378,2]
[354043604,1740201038029,-151.0,0.0001378,2]
[354043605,1740201038038,-351.98,0.0001378,2]
[354043606,1740201038047,-500.0,0.0001378,2]
[354043608,1740201038056,-500.0,0.0001378,2]
[354043610,1740201038066,-500.0,0.0001378,2]
[354043612,1740201038075,-151.0,0.0001378,2]
[354043613,1740201038084,-502.32853479,0.0001378,2]
[354043614,1740201038093,-503.44787902,0.0001378,2]
[354043616,1740201038102,-151.0,0.0001378,2]
[354043618,1740201038111,-409.73309392,0.0001378,2]
[354043619,1740201038120,-504.15225319,0.0001378,2]
[354043620,1740201038129,-500.0,0.0001378,2]
[354043621,1740201038140,-246.04,0.0001378,2]
[354043622,1740201038149,-505.26053619,0.0001378,2]
[354043624,1740201038158,-504.11950349,0.0001378,2]
[354043626,1740201038167,-500.0,0.0001378,2]
[354043627,1740201038176,-498.0,0.0001378,2]
[354043628,1740201038185,-502.37022927,0.0001378,2]
[354043629,1740201038194,-505.6807251,0.0001378,2]
[354043630,1740201038203,-500.0,0.0001378,2]
[354043632,1740201038212,-500.0,0.0001378,2]
[354043633,1740201038221,-245.14779682,0.0001378,2]
[354043634,1740201038230,-500.0,0.0001378,2]
[354043635,1740201038239,-500.0,0.0001378,2]
[354043636,1740201038248,-151.0,0.0001378,2]
[354043637,1740201038258,-151.0,0.0001378,2]
[354043638,1740201038267,-504.96080417,0.0001378,2]
[354043639,1740201038275,-500.0,0.0001378,2]
[354043640,1740201038284,-500.0,0.0001378,2]
[354043641,1740201038293,-500.0,0.0001378,2]
[354043642,1740201038303,-500.0,0.0001378,2]
[354043643,1740201038312,-500.0,0.0001378,2]
[354043644,1740201038321,-506.73488529,0.0001378,2]
[354043645,1740201038331,-533.08889368,0.0001378,2]
[354043646,1740201038341,-508.04296415,0.0001378,2]
[354043647,1740201038350,-500.0,0.0001378,2]
[354043648,1740201038359,-500.0,0.0001378,2]
[354043649,1740201038368,-500.0,0.0001378,2]
[354043650,1740201038377,-500.0,0.0001378,2]
[354043651,1740201038386,-500.0,0.0001378,2]
[354043652,1740201038398,-500.0,0.0001378,2]
[354043653,1740201038406,-500.0,0.0001378,2]
[354043656,1740201038416,-506.11416344,0.0001378,2]
[354043658,1740201038424,-500.0,0.0001378,2]
[354043660,1740201038433,-151.0,0.0001378,2]
[354043662,1740201038442,-500.0,0.0001378,2]
[354043664,1740201038451,-500.0,0.0001378,2]
[354043666,1740201038460,-500.0,0.0001378,2]
[354043667,1740201038469,-500.0,0.0001378,2]
[354043669,1740201038478,-500.0,0.0001378,2]
[354043671,1740201038487,-502.0662777,0.0001378,2]
[354043672,1740201038496,-503.89930332,0.0001378,2]
[354043673,1740201038504,-503.60214728,0.0001378,2]
[354043674,1740201038513,-500.0,0.0001378,2]
[354043675,1740201038522,-507.47395816,0.0001378,2]
[354043676,1740201038531,-502.99098845,0.0001378,2]
[354043677,1740201038540,-500.0,0.0001378,2]
[354043678,1740201038550,-271.22088126,0.0001378,2]
[354043679,1740201038559,-500.0,0.0001378,2]
[354043680,1740201038575,-151.0,0.0001378,2]
[354043681,1740201038584,-500.0,0.0001378,2]
[354043682,1740201038594,-500.0,0.0001378,2]
[354043683,1740201038605,-500.0,0.0001378,2]
[354043684,1740201038615,-500.0,0.0001378,2]
[354043685,1740201038624,-500.0,0.0001378,2]
[354043686,1740201038633,-500.0,0.0001378,2]
[354043687,1740201038642,-500.0,0.0001378,2]
[354043688,1740201038651,-500.0,0.0001378,2]
[354043689,1740201038661,-500.0,0.0001378,2]
[354043690,1740201038670,-500.0,0.0001378,2]
[354043691,1740201038680,-504.37492336,0.0001378,2]
[354043692,1740201038689,-500.0,0.0001378,2]
[354043693,1740201038698,-151.0,0.0001378,2]
[354043694,1740201038708,-151.0,0.0001378,2]
[354043695,1740201038717,-500.0,0.0001378,2]
[354043696,1740201038726,-500.0,0.0001378,2]
[354043697,1740201038736,-504.1473725,0.0001378,2]
[354043698,1740201038745,-500.0,0.0001378,2]
[354043699,1740201038754,-500.0,0.0001378,2]
[354043700,1740201038763,-500.0,0.0001378,2]
[354043701,1740201038773,-500.0,0.0001378,2]
[354043702,1740201038782,-500.0,0.0001378,2]
[354043703,1740201038791,-500.0,0.0001378,2]
[354043704,1740201038800,-500.0,0.0001378,2]
[354043705,1740201038808,-500.0,0.0001378,2]
[354043706,1740201038818,-500.0,0.0001378,2]
[354043707,1740201038827,-505.43795202,0.0001378,2]
[354043708,1740201038836,-502.59285531,0.0001378,2]
[354043709,1740201038845,-500.0,0.0001378,2]
[354043710,1740201038855,-500.0,0.0001378,2]
[354043711,1740201038864,-500.0,0.0001378,2]
[354043712,1740201038873,-500.0,0.0001378,2]
[354043713,1740201038882,-510.26175193,0.0001378,2]
[354043714,1740201038891,-500.0,0.0001378,2]
[354043715,1740201038900,-500.0,0.0001378,2]
[354043716,1740201038909,-500.0,0.0001378,2]
[354043717,1740201038918,-500.0,0.0001378,2]
[354043718,1740201038927,-500.0,0.0001378,2]
[354043719,1740201038936,-500.0,0.0001378,2]
[354043720,1740201038945,-500.0,0.0001378,2]
[354043721,1740201038954,-500.0,0.0001378,2]
[354043722,1740201038963,-500.0,0.0001378,2]
[354043723,1740201038973,-500.0,0.0001378,2]
[354043724,1740201038982,-500.0,0.0001378,2]
[354043725,1740201038991,-175.59193,0.0001378,2]
[354043726,1740201039001,-175.59193,0.0001378,2]
[354043727,1740201039010,-175.59193,0.0001378,2]
[354043728,1740201039018,-175.59193,0.0001378,2]
[354043729,1740201039027,-512.93498191,0.0001378,2]
[354043730,1740201039036,-2576.24,0.0001378,2]
[354043731,1740201039045,-500.0,0.0001378,2]
[354043732,1740201039054,-500.0,0.0001378,2]
[354043733,1740201039063,-529.55,0.0001378,2]
[354043734,1740201039072,-500.0,0.0001378,2]
[354043735,1740201039081,-500.0,0.0001378,2]
[354043736,1740201039090,-442.35,0.0001378,2]
[354043737,1740201039098,-565.68553695,0.0001378,2]
[354043738,1740201039107,-503.37867484,0.0001378,2]
[354043739,1740201039116,-500.0,0.0001378,2]
[354043740,1740201039125,-156.122582,0.0001378,2]
[354043741,1740201039134,-156.122582,0.0001378,2]
[354043742,1740201039144,-156.122582,0.0001378,2]
[354043743,1740201039153,-503.22155311,0.0001378,2]
[354043744,1740201039162,-500.0,0.0001378,2]
[354043745,1740201039171,-156.122582,0.0001378,2]
[354043746,1740201039180,-156.122582,0.0001378,2]
[354043747,1740201039189,-156.122582,0.0001378,2]
[354043748,1740201039198,-500.0,0.0001378,2]
[354043749,1740201039207,-500.0,0.0001378,2]
[354043750,1740201039216,-463.75361296,0.0001378,2]
[354043751,1740201039225,-500.0,0.0001378,2]
[354043752,1740201039234,-365.12,0.0001378,2]
[354043753,1740201039242,-500.0,0.0001378,2]
[354043754,1740201039252,-500.0,0.0001378,2]
[354043755,1740201039265,-229.05433,0.0001378,2]
[354043756,1740201039274,-500.0,0.0001378,2]
[354043757,1740201039283,-500.0,0.0001378,2]
[354043758,1740201039292,-502.38588827,0.0001378,2]
[354043759,1740201039303,-7483.23,0.0001378,2]
[354043760,1740201039312,-216.47844601,0.0001378,2]
[354043761,1740201039321,-500.0,0.0001378,2]
[354043762,1740201039330,-500.0,0.0001378,2]
[354043763,1740201039339,-1284.57,0.0001378,2]
[354043764,1740201039348,-500.0,0.0001378,2]
[354043765,1740201039358,-500.0,0.0001378,2]
[354043766,1740201039367,-500.0,0.0001378,2]
[354043767,1740201039375,-500.0,0.0001378,2]
[354043768,1740201039385,-500.0,0.0001378,2]
[354043769,1740201039394,-509.30474972,0.0001378,2]
[354043770,1740201039403,-500.0,0.0001378,2]
[354043771,1740201039412,-500.0,0.0001378,2]
[354043772,1740201039421,-500.0,0.0001378,2]
[354043773,1740201039430,-500.0,0.0001378,2]
[354043774,1740201039439,-500.0,0.0001378,2]
[354043775,1740201039448,-500.0,0.0001378,2]
[354043776,1740201039457,-347.10309021,0.0001378,2]
[354043777,1740201039466,-500.0,0.0001378,2]
[354043778,1740201039475,-155.144524,0.0001378,2]
[354043779,1740201039485,-155.144524,0.0001378,2]
[354043780,1740201039494,-155.144524,0.0001378,2]
[354043781,1740201039503,-661.96,0.0001378,2]
[354043782,1740201039512,-152.788416,0.0001378,2]
[354043783,1740201039521,-152.788416,0.0001378,2]
[354043784,1740201039530,-152.788416,0.0001378,2]
[354043785,1740201039540,-155.144524,0.0001378,2]
[354043786,1740201039549,-155.144524,0.0001378,2]
[354043787,1740201039558,-155.144524,0.0001378,2]
[354043788,1740201039567,-765.57,0.0001378,2]
[354043789,1740201039576,-500.0,0.0001378,2]
[354043790,1740201039585,-152.788416,0.0001378,2]
[354043791,1740201039594,-152.788416,0.0001378,2]
[354043792,1740201039603,-152.788416,0.0001378,2]
[354043793,1740201039613,-1100.22,0.0001378,2]
[354043794,1740201039622,-500.0,0.0001378,2]
[354043795,1740201039631,-508.98993691,0.0001378,2]
[354043796,1740201039640,-508.27433152,0.0001378,2]
[354043797,1740201039732,-2884.74,0.0001378,2]
[354043798,1740201039742,-500.0,0.0001378,2]
[354043799,1740201039754,-500.0,0.0001378,2]
[354043800,1740201039763,-500.0,0.0001378,2]
[354043801,1740201039772,-500.0,0.0001378,2]
[354043802,1740201039781,-500.0,0.0001378,2]
[354043803,1740201039791,-500.0,0.0001378,2]
[354043804,1740201039800,-663.77,0.0001378,2]
[354043805,1740201039809,-776.56,0.0001378,2]
[354043806,1740201039819,-500.0,0.0001378,2]
[354043807,1740201039829,-151.0,0.0001378,2]
[354043808,1740201039838,-151.0,0.0001378,2]
[354043809,1740201039847,-500.0,0.0001378,2]
[354043810,1740201039857,-151.0,0.0001378,2]
[354043811,1740201039867,-503.29351089,0.0001378,2]
[354043812,1740201039878,-500.0,0.0001378,2]
[354043813,1740201039887,-500.0,0.0001378,2]
[354043814,1740201039896,-500.0,0.0001378,2]
[354043815,1740201039906,-500.0,0.0001378,2]
[354043816,1740201039915,-500.0,0.0001378,2]
[354043817,1740201039925,-500.0,0.0001378,2]
[354043818,1740201039934,-500.0,0.0001378,2]
[354043819,1740201039944,-500.0,0.0001378,2]
[354043820,1740201039953,-507.66210569,0.0001378,2]
[354043821,1740201039963,-500.0,0.0001378,2]
[354043822,1740201039972,-347.63890694,0.0001378,2]
[354043823,1740201039981,-500.0,0.0001378,2]
[354043824,1740201039991,-505.69658739,0.0001378,2]
[354043825,1740201040001,-567.85033298,0.0001378,2]
[354043826,1740201040010,-500.0,0.0001378,2]
[354043827,1740201040019,-500.0,0.0001378,2]
[354043828,1740201040029,-500.0,0.0001378,2]
[354043829,1740201040039,-500.0,0.0001378,2]
[354043830,1740201040048,-500.0,0.0001378,2]
[354043831,1740201040058,-500.0,0.0001378,2]
[354043832,1740201040067,-313.13464628,0.0001378,2]
[354043833,1740201040078,-500.0,0.0001378,2]
[354043834,1740201040089,-1102.05,0.0001378,2]
[354043835,1740201040101,-502.0,0.0001378,2]
[354043836,1740201040112,-212.17723436,0.00013788,2]
[354043837,1740201040122,-1114.2377602,0.000138,2]
[354043838,1740201040132,-557.1710486,0.000138,2]
[354043839,1740201040142,-160.0,0.00013862,2]
[354043840,1740201040152,-500.0,0.00013862,2]
[354043841,1740201040162,-200.23903844,0.00013862,2]
[354043842,1740201040172,-500.0,0.00013862,2]
[354043843,1740201040181,-500.0,0.00013862,2]
[354043844,1740201040190,-224.38134314,0.00013862,2]
[354043845,1740201040200,-500.0,0.00013863,2]
[354043846,1740201040210,-159.86,0.00013863,2]
[354043847,1740201040220,-151.0,0.00013863,2]
[354043848,1740201040230,-503.25504373,0.00013863,2]
[354043849,1740201040240,-500.0,0.00013863,2]
[354043850,1740201040250,-151.0,0.00013863,2]
[354043852,1740201040264,-151.0,0.00013863,2]
[354043854,1740201040273,-151.0,0.00013863,2]
[354043855,1740201040282,-151.0,0.00013863,2]
[354043857,1740201040291,-156.61,0.00013863,2]
[354043859,1740201040302,-500.0,0.00013863,2]
[354043862,1740201040312,-500.0,0.00013863,2]
[354043864,1740201040322,-500.0,0.00013863,2]
[354043865,1740201040331,-151.0,0.00013863,2]
[354043867,1740201040341,-500.0,0.00013863,2]
[354043869,1740201040350,-500.0,0.00013863,2]
[354043871,1740201040360,-500.0,0.00013863,2]
[354043874,1740201040369,-500.0,0.00013863,2]
[354043875,1740201040378,-538.24745752,0.00013863,2]
[354043877,1740201040388,-500.0,0.00013863,2]
[354043880,1740201040397,-500.0,0.00013863,2]
[354043882,1740201040407,-500.0,0.00013863,2]
[354043883,1740201040416,-500.0,0.00013863,2]
[354043885,1740201040425,-151.0,0.00013863,2]
[354043887,1740201040434,-151.0,0.00013863,2]
[354043889,1740201040443,-500.0,0.00013863,2]
[354043891,1740201040452,-500.0,0.00013863,2]
[354043894,1740201040462,-500.0,0.00013863,2]
[354043896,1740201040471,-500.0,0.00013863,2]
[354043897,1740201040481,-520.6,0.00013863,2]
[354043899,1740201040491,-500.0,0.00013863,2]
[354043901,1740201040500,-321.27273264,0.00013863,2]
[354043904,1740201040512,-500.0,0.00013863,2]
[354043906,1740201040521,-501.74621952,0.00013863,2]
[354043908,1740201040531,-502.28916816,0.00013863,2]
[354043910,1740201040540,-502.8444013,0.00013863,2]
[354043912,1740201040549,-500.0,0.00013863,2]
[354043914,1740201040559,-500.0,0.00013863,2]
[354043916,1740201040568,-380.44560748,0.00013863,2]
[354043918,1740201040577,-151.0,0.00013863,2]
[354043920,1740201040587,-500.0,0.00013863,2]
[354043922,1740201040596,-500.0,0.00013863,2]
[354043924,1740201040606,-500.0,0.00013863,2]
[354043926,1740201040615,-391.03094487,0.00013863,2]
[354043928,1740201040624,-500.0,0.00013863,2]
[354043930,1740201040634,-500.0,0.00013863,2]
[354043932,1740201040644,-500.0,0.00013863,2]
[354043934,1740201040653,-500.0,0.00013863,2]
[354043936,1740201040663,-611.24492283,0.00013863,2]
[354043938,1740201040673,-500.0,0.00013863,2]
[354043940,1740201040682,-500.0,0.00013863,2]
[354043942,1740201040692,-243.64,0.00013863,2]
[354043944,1740201040701,-500.0,0.00013863,2]
[354043946,1740201040710,-539.10171385,0.00013863,2]
[354043948,1740201040720,-500.0,0.00013863,2]
[354043950,1740201040730,-500.0,0.00013863,2]
[354043952,1740201040739,-500.0,0.00013863,2]
[354043954,1740201040749,-549.88613882,0.00013863,2]
[354043956,1740201040758,-500.0,0.00013863,2]
[354043958,1740201040768,-602.61,0.00013863,2]
[354043960,1740201040778,-500.0,0.00013863,2]
[354043962,1740201040787,-500.0,0.00013863,2]
[354043964,1740201040797,-464.7,0.00013863,2]
[354043966,1740201040806,-542.30649184,0.00013863,2]
[354043969,1740201040815,-175.59193,0.00013863,2]
[354043971,1740201040825,-175.59193,0.00013863,2]
[354043973,1740201040834,-2576.24,0.00013863,2]
[354043975,1740201040843,-500.0,0.00013863,2]
[354043977,1740201040852,-500.0,0.00013863,2]
[354043979,1740201040861,-529.55,0.00013863,2]
[354043981,1740201040870,-500.0,0.00013863,2]
[354043983,1740201040879,-500.0,0.00013863,2]
[354043985,1740201040889,-500.0,0.00013863,2]
[354043987,1740201040898,-156.122582,0.00013863,2]
[354043988,1740201040907,-156.122582,0.00013863,2]
[354043990,1740201040917,-500.0,0.00013863,2]
[354043992,1740201040926,-156.122582,0.00013863,2]
[354043994,1740201040935,-156.122582,0.00013863,2]
[354043996,1740201040944,-500.0,0.00013863,2]
[354043998,1740201040954,-500.0,0.00013863,2]
[354044000,1740201040963,-500.0,0.00013863,2]
[354044002,1740201040972,-508.22090999,0.00013863,2]
[354044004,1740201040982,-500.0,0.00013863,2]
[354044006,1740201040991,-500.0,0.00013863,2]
[354044008,1740201041000,-500.0,0.00013863,2]
[354044010,1740201041010,-7483.23,0.00013863,2]
[354044012,1740201041019,-509.144488,0.00013863,2]
[354044014,1740201041028,-500.0,0.00013863,2]
[354044016,1740201041038,-1284.57,0.00013863,2]
[354044018,1740201041047,-576.55,0.00013863,2]
[354044021,1740201041057,-500.0,0.00013863,2]
[354044023,1740201041066,-500.0,0.00013863,2]
[354044025,1740201041075,-640.41663529,0.00013863,2]
[354044027,1740201041085,-503.65855487,0.00013863,2]
[354044029,1740201041095,-500.0,0.00013863,2]
[354044030,1740201041104,-500.0,0.00013863,2]
[354044032,1740201041115,-424.32,0.00013863,2]
[354044034,1740201041125,-500.0,0.00013863,2]
[354044036,1740201041134,-500.0,0.00013863,2]
[354044038,1740201041144,-500.0,0.00013863,2]
[354044040,1740201041153,-500.0,0.00013863,2]
[354044042,1740201041163,-155.144524,0.00013863,2]
[354044044,1740201041172,-155.144524,0.00013863,2]
[354044046,1740201041181,-661.96,0.00013863,2]
[354044048,1740201041191,-152.788416,0.00013863,2]
[354044050,1740201041200,-152.788416,0.00013863,2]
[354044052,1740201041209,-155.144524,0.00013863,2]
[354044054,1740201041218,-765.57,0.00013863,2]
[354044056,1740201041227,-155.144524,0.00013863,2]
[354044058,1740201041237,-500.0,0.00013863,2]
[354044060,1740201041246,-152.788416,0.00013863,2]
[354044062,1740201041255,-152.788416,0.00013863,2]
[354044064,1740201041268,-1100.22,0.00013863,2]
[354044066,1740201041277,-500.0,0.00013863,2]
[354044068,1740201041286,-2884.74,0.00013863,2]
[354044070,1740201041295,-500.0,0.00013863,2]
[354044071,1740201041305,-504.70978348,0.00013863,2]
[354044072,1740201041314,-500.0,0.00013863,2]
[354044073,1740201041323,-500.0,0.00013863,2]
[354044074,1740201041332,-500.0,0.00013863,2]
[354044075,1740201041342,-512.34280625,0.00013863,2]
[354044076,1740201041352,-663.77,0.00013863,2]
[354044077,1740201041361,-776.56,0.00013863,2]
[354044078,1740201041371,-500.0,0.00013863,2]
[354044079,1740201041380,-500.0,0.00013863,2]
[354044080,1740201041389,-151.0,0.00013863,2]
[354044081,1740201041398,-189.748068,0.00013863,2]
[354044082,1740201041407,-500.0,0.00013863,2]
[354044083,1740201041416,-500.0,0.00013863,2]
[354044084,1740201041425,-500.0,0.00013863,2]
[354044085,1740201041434,-500.0,0.00013863,2]
[354044086,1740201041443,-502.67644077,0.00013863,2]
[354044087,1740201041452,-500.0,0.00013863,2]
[354044088,1740201041461,-500.0,0.00013863,2]
[354044089,1740201041470,-500.0,0.00013863,2]
[354044090,1740201041479,-500.0,0.00013863,2]
[354044091,1740201041488,-503.35902159,0.00013863,2]
[354044092,1740201041497,-500.0,0.00013863,2]
[354044093,1740201041506,-500.0,0.00013863,2]
[354044094,1740201041516,-500.0,0.00013863,2]
[354044096,1740201041525,-500.0,0.00013863,2]
[354044098,1740201041534,-500.0,0.00013863,2]
[354044100,1740201041543,-160.38,0.00013863,2]
[354044102,1740201041553,-1102.05,0.00013863,2]
[354044104,1740201041562,-188.9232215,0.00013865,2]
[354044106,1740201041572,-1970.0,0.00013899,2]
[354044108,1740201041581,-538.0,0.00013899,2]
[354044110,1740201041590,-2288.0,0.00013899,2]
[354044112,1740201041599,-500.0,0.00013916,2]
[354044114,1740201041608,-501.87674577,0.00013933,2]
[354044116,1740201041617,-160.0,0.00013944,2]
[354044118,1740201041626,-509.75747011,0.00013945,2]
[354044120,1740201041635,-9345.216051,0.00013945,4]
[354044122,1740201041644,-239.0,0.00013945,2]
[354044123,1740201041653,-500.0,0.00013945,2]
[354044124,1740201041662,-151.0,0.00013945,2]
[354044125,1740201041672,-257.386445,0.00013945,2]
[354044126,1740201041681,-500.0,0.00013945,2]
[354044127,1740201041690,-500.0,0.00013945,2]
[354044128,1740201041699,-500.0,0.00013945,2]
[354044129,1740201041708,-500.0,0.00013945,2]
[354044130,1740201041717,-500.0,0.00013945,2]
[354044131,1740201041727,-500.0,0.00013945,2]
[354044132,1740201041736,-500.0,0.00013945,2]
[354044133,1740201041824,-500.0,0.00013945,2]
[354044134,1740201041835,-500.0,0.00013945,2]
[354044135,1740201041845,-508.34,0.00013945,2]
[354044136,1740201041854,-226.70457547,0.00013945,2]
[354044137,1740201041863,-173.375268,0.00013945,2]
[354044138,1740201041873,-500.0,0.00013945,2]
[354044139,1740201041882,-500.0,0.00013945,2]
[354044140,1740201041892,-500.0,0.00013945,2]
[354044141,1740201041901,-500.0,0.00013945,2]
[354044142,1740201041910,-578.8693,0.00013945,2]
[354044143,1740201041920,-487.69260498,0.00013945,2]
[354044144,1740201041929,-429.86629602,0.00013945,2]